[Event "Titled Tuesday Blitz April 11 Early 2023"]
[White "Berezin, Viktor"]
[Black "Mirzoev, Azer"]
[WhiteFideId "14107872"]
[BlackFideId "13400304"]
[WhiteElo "2310"]
[BlackElo "2525"]
[Result "0-1"]
[Round "11"]
[TimeControl "180+2"]
[Date "2023.04.11"]
[WhiteClock "0:00:05"]
[BlackClock "0:00:30"]

1. d4 {[%clk 0:02:53]}  d5 {[%clk 0:02:58]} 2. c4 {[%clk 0:02:53]}  e6 {[%clk 0:02:58]} 3. Nf3 {[%clk 0:02:53]}  a6 {[%clk 0:02:59]} 4. Qc2 {[%clk 0:02:52]}  Nf6 {[%clk 0:02:55]} 5. g3 {[%clk 0:02:51]}  c5 {[%clk 0:02:51]} 6. cxd5 {[%clk 0:02:51]}  exd5 {[%clk 0:02:47]} 7. dxc5 {[%clk 0:02:45]}  Nc6 {[%clk 0:02:47]} 8. Bg2 {[%clk 0:02:45]}  Ne4 {[%clk 0:02:46]} 9. O-O {[%clk 0:02:44]}  Bf5 {[%clk 0:02:41]} 10. Nh4 {[%clk 0:02:26]}  Be6 {[%clk 0:02:41]} 11. Nc3 {[%clk 0:02:23]}  Nxc5 {[%clk 0:02:38]} 12. Rd1 {[%clk 0:02:19]}  d4 {[%clk 0:02:38]} 13. Bxc6+ {[%clk 0:02:10]}  bxc6 {[%clk 0:02:38]} 14. Nf3 {[%clk 0:02:10]}  d3 {[%clk 0:02:37]} 15. exd3 {[%clk 0:02:08]}  Be7 {[%clk 0:02:31]} 16. d4 {[%clk 0:02:06]}  Nb7 {[%clk 0:02:28]} 17. Ne5 {[%clk 0:01:58]}  Rc8 {[%clk 0:02:25]} 18. Bf4 {[%clk 0:01:54]}  O-O {[%clk 0:02:23]} 19. Rac1 {[%clk 0:01:54]}  f6 {[%clk 0:02:16]} 20. Nxc6 {[%clk 0:01:38]}  Rxc6 {[%clk 0:02:15]} 21. d5 {[%clk 0:01:39]}  Rxc3 {[%clk 0:02:15]} 22. Qxc3 {[%clk 0:01:15]}  Bg4 {[%clk 0:02:03]} 23. Re1 {[%clk 0:01:15]}  Bd6 {[%clk 0:01:55]} 24. Bxd6 {[%clk 0:01:09]}  Nxd6 {[%clk 0:01:55]} 25. Qc7 {[%clk 0:01:06]}  h5 {[%clk 0:01:48]} 26. Re7 {[%clk 0:00:55]}  Nf5 {[%clk 0:01:40]} 27. Rd7 {[%clk 0:00:55]}  Qe8 {[%clk 0:01:35]} 28. d6 {[%clk 0:00:38]}  Kh7 {[%clk 0:01:13]} 29. Qb7 {[%clk 0:00:33]}  Qe6 {[%clk 0:00:52]} 30. Rcc7 {[%clk 0:00:26]}  Rg8 {[%clk 0:00:52]} 31. Qb3 {[%clk 0:00:17]}  Qe1+ {[%clk 0:00:44]} 32. Kg2 {[%clk 0:00:18]}  Qe4+ {[%clk 0:00:41]} 33. Kg1 {[%clk 0:00:14]}  Bh3 {[%clk 0:00:35]} 34. Rxg7+ {[%clk 0:00:05]}  Rxg7 {[%clk 0:00:30]} 35. Rxg7+ {[%clk 0:00:05]}  Nxg7 {[%clk 0:00:30]} 0-1


[Site "https://www.chess.com"]

[Event "Titled Tuesday Blitz April 11 Early 2023"]
[White "Seo, Jung Min"]
[Black "Yurasova, Daria"]
[WhiteFideId "1734687"]
[BlackFideId "34146919"]
[WhiteElo "2468"]
[BlackElo "2134"]
[Result "1-0"]
[Round "11"]
[TimeControl "180+2"]
[Date "2023.04.11"]
[WhiteClock "0:00:48"]
[BlackClock "0:00:01"]

1. b3 {[%clk 0:02:59]}  b6 {[%clk 0:02:58]} 2. Bb2 {[%clk 0:03:00]}  Bb7 {[%clk 0:02:59]} 3. c4 {[%clk 0:02:59]}  e6 {[%clk 0:02:59]} 4. Nf3 {[%clk 0:02:59]}  Nf6 {[%clk 0:02:59]} 5. g3 {[%clk 0:02:59]}  Be7 {[%clk 0:03:00]} 6. Bg2 {[%clk 0:02:59]}  d6 {[%clk 0:03:00]} 7. O-O {[%clk 0:02:59]}  Nbd7 {[%clk 0:03:01]} 8. d4 {[%clk 0:02:58]}  c5 {[%clk 0:03:01]} 9. d5 {[%clk 0:02:57]}  exd5 {[%clk 0:03:00]} 10. Nh4 {[%clk 0:02:57]}  O-O {[%clk 0:02:59]} 11. cxd5 {[%clk 0:02:53]}  Re8 {[%clk 0:02:57]} 12. e4 {[%clk 0:02:50]}  Bf8 {[%clk 0:02:55]} 13. Re1 {[%clk 0:02:50]}  Ne5 {[%clk 0:02:54]} 14. f4 {[%clk 0:02:45]}  Ng6 {[%clk 0:02:53]} 15. Nxg6 {[%clk 0:02:44]}  hxg6 {[%clk 0:02:52]} 16. Nc3 {[%clk 0:02:44]}  Nd7 {[%clk 0:02:41]} 17. a4 {[%clk 0:02:39]}  a6 {[%clk 0:02:42]} 18. Qd3 {[%clk 0:02:38]}  Be7 {[%clk 0:02:37]} 19. Nd1 {[%clk 0:02:29]}  Bf6 {[%clk 0:02:35]} 20. h4 {[%clk 0:02:27]}  Bxb2 {[%clk 0:02:34]} 21. Nxb2 {[%clk 0:02:27]}  Nf6 {[%clk 0:02:14]} 22. Nc4 {[%clk 0:02:27]}  b5 {[%clk 0:02:11]} 23. axb5 {[%clk 0:02:20]}  axb5 {[%clk 0:02:10]} 24. Rxa8 {[%clk 0:02:18]}  Bxa8 {[%clk 0:02:08]} 25. Na3 {[%clk 0:02:18]}  b4 {[%clk 0:01:30]} 26. Nc2 {[%clk 0:02:11]}  Qb6 {[%clk 0:01:26]} 27. Ne3 {[%clk 0:02:03]}  Bb7 {[%clk 0:01:21]} 28. Nc4 {[%clk 0:02:01]}  Qc7 {[%clk 0:01:21]} 29. e5 {[%clk 0:01:59]}  dxe5 {[%clk 0:00:56]} 30. fxe5 {[%clk 0:01:58]}  Nd7 {[%clk 0:00:54]} 31. e6 {[%clk 0:01:50]}  fxe6 {[%clk 0:00:50]} 32. Qxg6 {[%clk 0:01:42]}  Nf6 {[%clk 0:00:43]} 33. h5 {[%clk 0:01:25]}  e5 {[%clk 0:00:26]} 34. h6 {[%clk 0:01:20]}  Rf8 {[%clk 0:00:08]} 35. Rxe5 {[%clk 0:01:17]}  Qf7 {[%clk 0:00:04]} 36. Qxf7+ {[%clk 0:01:17]}  Rxf7 {[%clk 0:00:05]} 37. Nd6 {[%clk 0:01:14]}  Rd7 {[%clk 0:00:06]} 38. Nxb7 {[%clk 0:01:14]}  Rxb7 {[%clk 0:00:06]} 39. hxg7 {[%clk 0:01:12]}  Kxg7 {[%clk 0:00:06]} 40. d6 {[%clk 0:01:11]}  Rd7 {[%clk 0:00:05]} 41. Rxc5 {[%clk 0:01:05]}  Rxd6 {[%clk 0:00:06]} 42. Rc4 {[%clk 0:01:06]}  Rd3 {[%clk 0:00:05]} 43. Rxb4 {[%clk 0:01:04]}  Rxg3 {[%clk 0:00:06]} 44. Rb7+ {[%clk 0:01:02]}  Kf8 {[%clk 0:00:05]} 45. Kf2 {[%clk 0:01:01]}  Rg5 {[%clk 0:00:05]} 46. Bf3 {[%clk 0:01:01]}  Rf5 {[%clk 0:00:04]} 47. Ke3 {[%clk 0:01:01]}  Re5+ {[%clk 0:00:04]} 48. Kd4 {[%clk 0:01:00]}  Re1 {[%clk 0:00:04]} 49. b4 {[%clk 0:01:00]}  Ke8 {[%clk 0:00:05]} 50. b5 {[%clk 0:00:58]}  Kd8 {[%clk 0:00:01]} 51. Rf7 {[%clk 0:00:58]}  Nd7 {[%clk 0:00:01]} 52. Bc6 {[%clk 0:00:58]}  Nb6 {[%clk 0:00:02]} 53. Rb7 {[%clk 0:00:56]}  Nc8 {[%clk 0:00:02]} 54. Rd7+ {[%clk 0:00:55]}  Ke8 {[%clk 0:00:02]} 55. Kc3 {[%clk 0:00:50]}  Re3+ {[%clk 0:00:02]} 56. Rd3+ {[%clk 0:00:48]}  Kf7 {[%clk 0:00:01]} 57. Rxe3 {[%clk 0:00:48]} 1-0


[Site "https://www.chess.com"]

[Event "Titled Tuesday Blitz April 11 Early 2023"]
[White "Arabidze, Meri"]
[Black "Lopez, Henry"]
[WhiteFideId "13604040"]
[BlackFideId "5203830"]
[WhiteElo "2405"]
[BlackElo "2177"]
[Result "1-0"]
[Round "11"]
[TimeControl "180+2"]
[Date "2023.04.11"]
[WhiteClock "0:00:10"]
[BlackClock "0:00:02"]

1. Nf3 {[%clk 0:03:00]}  c5 {[%clk 0:02:59]} 2. g3 {[%clk 0:03:01]}  b6 {[%clk 0:02:58]} 3. Bg2 {[%clk 0:03:01]}  Bb7 {[%clk 0:02:59]} 4. O-O {[%clk 0:03:02]}  Nf6 {[%clk 0:02:58]} 5. c4 {[%clk 0:03:02]}  e6 {[%clk 0:02:58]} 6. d4 {[%clk 0:03:00]}  cxd4 {[%clk 0:02:58]} 7. Qxd4 {[%clk 0:03:01]}  Be7 {[%clk 0:02:58]} 8. Nc3 {[%clk 0:03:01]}  a6 {[%clk 0:02:57]} 9. Rd1 {[%clk 0:03:00]}  d6 {[%clk 0:02:57]} 10. Bg5 {[%clk 0:02:55]}  Nbd7 {[%clk 0:02:57]} 11. e4 {[%clk 0:02:50]}  Qc7 {[%clk 0:02:56]} 12. Rac1 {[%clk 0:02:50]}  Rc8 {[%clk 0:02:55]} 13. b3 {[%clk 0:02:50]}  O-O {[%clk 0:02:54]} 14. h3 {[%clk 0:02:50]}  h6 {[%clk 0:02:54]} 15. Be3 {[%clk 0:02:49]}  Rfe8 {[%clk 0:02:54]} 16. Nh2 {[%clk 0:02:38]}  Nc5 {[%clk 0:02:51]} 17. Ng4 {[%clk 0:02:32]}  Red8 {[%clk 0:02:38]} 18. f3 {[%clk 0:02:27]}  Nxg4 {[%clk 0:02:31]} 19. hxg4 {[%clk 0:02:28]}  Bf6 {[%clk 0:02:30]} 20. Qd2 {[%clk 0:02:28]}  Be7 {[%clk 0:02:25]} 21. g5 {[%clk 0:02:23]}  hxg5 {[%clk 0:02:21]} 22. Bxg5 {[%clk 0:02:24]}  Ba8 {[%clk 0:02:13]} 23. Bxe7 {[%clk 0:02:12]}  Qxe7 {[%clk 0:02:12]} 24. Qf4 {[%clk 0:02:12]}  g6 {[%clk 0:02:00]} 25. Rd2 {[%clk 0:02:07]}  Kg7 {[%clk 0:01:59]} 26. Rcd1 {[%clk 0:02:06]}  e5 {[%clk 0:01:59]} 27. Qe3 {[%clk 0:02:02]}  Qc7 {[%clk 0:01:53]} 28. Bh3 {[%clk 0:01:57]}  Rb8 {[%clk 0:01:50]} 29. Bf1 {[%clk 0:01:47]}  Ne6 {[%clk 0:01:47]} 30. Rh2 {[%clk 0:01:42]}  Rh8 {[%clk 0:01:45]} 31. Rdd2 {[%clk 0:01:42]}  Nd4 {[%clk 0:01:42]} 32. Rdf2 {[%clk 0:01:19]}  b5 {[%clk 0:01:32]} 33. Ne2 {[%clk 0:01:19]}  Qc5 {[%clk 0:01:19]} 34. Nxd4 {[%clk 0:01:04]}  exd4 {[%clk 0:01:18]} 35. Qd2 {[%clk 0:01:01]}  bxc4 {[%clk 0:01:13]} 36. Bxc4 {[%clk 0:01:02]}  Qe5 {[%clk 0:00:57]} 37. Qf4 {[%clk 0:00:51]}  f6 {[%clk 0:00:50]} 38. Qg4 {[%clk 0:00:44]}  Bc6 {[%clk 0:00:43]} 39. Bd3 {[%clk 0:00:37]}  Bb5 {[%clk 0:00:20]} 40. f4 {[%clk 0:00:33]}  Qe7 {[%clk 0:00:17]} 41. Bxb5 {[%clk 0:00:30]}  axb5 {[%clk 0:00:16]} 42. f5 {[%clk 0:00:23]}  g5 {[%clk 0:00:16]} 43. Rh5 {[%clk 0:00:17]}  Rh6 {[%clk 0:00:11]} 44. Rxh6 {[%clk 0:00:17]}  Kxh6 {[%clk 0:00:08]} 45. Rh2+ {[%clk 0:00:17]}  Kg7 {[%clk 0:00:08]} 46. Qh5 {[%clk 0:00:17]}  Rg8 {[%clk 0:00:02]} 47. e5 {[%clk 0:00:10]} 1-0


[Site "https://www.chess.com"]

[Event "Titled Tuesday Blitz April 11 Early 2023"]
[White "Skliarov, Viktor"]
[Black "Dudzinski, Pawel"]
[WhiteFideId "14106736"]
[BlackFideId "1117890"]
[WhiteElo "2317"]
[BlackElo "2099"]
[Result "1-0"]
[Round "11"]
[TimeControl "180+2"]
[Date "2023.04.11"]
[WhiteClock "0:00:06"]
[BlackClock "0:00:01"]

1. e4 {[%clk 0:03:00]}  c6 {[%clk 0:02:59]} 2. d4 {[%clk 0:03:00]}  d5 {[%clk 0:03:00]} 3. e5 {[%clk 0:03:01]}  c5 {[%clk 0:03:00]} 4. dxc5 {[%clk 0:03:01]}  e6 {[%clk 0:02:59]} 5. a3 {[%clk 0:03:01]}  Bxc5 {[%clk 0:02:59]} 6. b4 {[%clk 0:03:02]}  Bb6 {[%clk 0:03:00]} 7. Qg4 {[%clk 0:02:57]}  Kf8 {[%clk 0:02:54]} 8. Nf3 {[%clk 0:02:57]}  Ne7 {[%clk 0:02:53]} 9. Bd3 {[%clk 0:02:56]}  Ng6 {[%clk 0:02:53]} 10. h4 {[%clk 0:02:53]}  a5 {[%clk 0:02:49]} 11. h5 {[%clk 0:02:35]}  Ne7 {[%clk 0:02:49]} 12. b5 {[%clk 0:02:35]}  Nd7 {[%clk 0:02:48]} 13. h6 {[%clk 0:02:32]}  g6 {[%clk 0:02:41]} 14. Bg5 {[%clk 0:02:32]}  Qc7 {[%clk 0:02:13]} 15. Qf4 {[%clk 0:02:03]}  f5 {[%clk 0:01:44]} 16. exf6 {[%clk 0:01:55]}  Nf5 {[%clk 0:01:45]} 17. g4 {[%clk 0:01:24]}  Nd6 {[%clk 0:01:23]} 18. O-O {[%clk 0:00:30]}  Nf7 {[%clk 0:01:19]} 19. Qd2 {[%clk 0:00:20]}  e5 {[%clk 0:01:05]} 20. Re1 {[%clk 0:00:20]}  e4 {[%clk 0:00:40]} 21. Bf4 {[%clk 0:00:20]}  Qd8 {[%clk 0:00:41]} 22. g5 {[%clk 0:00:20]}  exf3 {[%clk 0:00:35]} 23. Nc3 {[%clk 0:00:14]}  Nc5 {[%clk 0:00:22]} 24. Bf1 {[%clk 0:00:12]}  Be6 {[%clk 0:00:18]} 25. Rad1 {[%clk 0:00:12]}  Rc8 {[%clk 0:00:18]} 26. Nxd5 {[%clk 0:00:12]}  Bxd5 {[%clk 0:00:18]} 27. Qxd5 {[%clk 0:00:12]}  Qxd5 {[%clk 0:00:18]} 28. Rxd5 {[%clk 0:00:13]}  Na4 {[%clk 0:00:13]} 29. c4 {[%clk 0:00:13]}  Bc7 {[%clk 0:00:12]} 30. Bxc7 {[%clk 0:00:06]}  Rxc7 {[%clk 0:00:13]} 31. Bh3 {[%clk 0:00:06]}  Nc3 {[%clk 0:00:12]} 32. Rd3 {[%clk 0:00:05]}  Ne2+ {[%clk 0:00:12]} 33. Kf1 {[%clk 0:00:05]}  Nf4 {[%clk 0:00:12]} 34. Rxf3 {[%clk 0:00:04]}  Nxh3 {[%clk 0:00:12]} 35. Rxh3 {[%clk 0:00:05]}  Nxg5 {[%clk 0:00:13]} 36. Rhe3 {[%clk 0:00:04]}  Kf7 {[%clk 0:00:12]} 37. Re7+ {[%clk 0:00:04]}  Rxe7 {[%clk 0:00:13]} 38. Rxe7+ {[%clk 0:00:05]}  Kxf6 {[%clk 0:00:13]} 39. Rxb7 {[%clk 0:00:06]}  Rc8 {[%clk 0:00:12]} 40. Rb6+ {[%clk 0:00:05]}  Ke5 {[%clk 0:00:12]} 41. Ra6 {[%clk 0:00:04]}  Rxc4 {[%clk 0:00:12]} 42. Rxa5 {[%clk 0:00:04]}  Kd5 {[%clk 0:00:10]} 43. b6+ {[%clk 0:00:03]}  Kc6 {[%clk 0:00:10]} 44. Rb5 {[%clk 0:00:04]}  Kb7 {[%clk 0:00:08]} 45. Rxg5 {[%clk 0:00:04]}  Kxb6 {[%clk 0:00:08]} 46. Re5 {[%clk 0:00:02]}  Rh4 {[%clk 0:00:08]} 47. Re6+ {[%clk 0:00:02]}  Ka5 {[%clk 0:00:08]} 48. Re3 {[%clk 0:00:02]}  Rxh6 {[%clk 0:00:08]} 49. Kg2 {[%clk 0:00:03]}  Rh4 {[%clk 0:00:07]} 50. Kg3 {[%clk 0:00:03]}  g5 {[%clk 0:00:07]} 51. f3 {[%clk 0:00:03]}  h6 {[%clk 0:00:07]} 52. Re6 {[%clk 0:00:02]}  Rh1 {[%clk 0:00:06]} 53. Re3 {[%clk 0:00:01]}  Ka4 {[%clk 0:00:07]} 54. Kg2 {[%clk 0:00:02]}  Ra1 {[%clk 0:00:07]} 55. Re6 {[%clk 0:00:02]}  Rxa3 {[%clk 0:00:05]} 56. Rxh6 {[%clk 0:00:02]}  Kb4 {[%clk 0:00:06]} 57. Rg6 {[%clk 0:00:03]}  Ra5 {[%clk 0:00:06]} 58. Kg3 {[%clk 0:00:03]}  Kc4 {[%clk 0:00:06]} 59. Kg4 {[%clk 0:00:04]}  Kd4 {[%clk 0:00:07]} 60. Rxg5 {[%clk 0:00:04]}  Ra1 {[%clk 0:00:06]} 61. Kf4 {[%clk 0:00:03]}  Rh1 {[%clk 0:00:05]} 62. Rg8 {[%clk 0:00:03]}  Kd5 {[%clk 0:00:04]} 63. Kf5 {[%clk 0:00:03]}  Kd6 {[%clk 0:00:05]} 64. Kf6 {[%clk 0:00:03]}  Rf1 {[%clk 0:00:05]} 65. Rg3 {[%clk 0:00:02]}  Kd5 {[%clk 0:00:05]} 66. Kf5 {[%clk 0:00:02]}  Kd4 {[%clk 0:00:05]} 67. f4 {[%clk 0:00:02]}  Rf2 {[%clk 0:00:03]} 68. Rg1 {[%clk 0:00:02]}  Ke3 {[%clk 0:00:03]} 69. Re1+ {[%clk 0:00:02]}  Kf3 {[%clk 0:00:03]} 70. Ke5 {[%clk 0:00:02]}  Kg3 {[%clk 0:00:04]} 71. f5 {[%clk 0:00:02]}  Kg4 {[%clk 0:00:04]} 72. f6 {[%clk 0:00:03]}  Kg5 {[%clk 0:00:04]} 73. Rg1+ {[%clk 0:00:03]}  Kh6 {[%clk 0:00:04]} 74. Ke6 {[%clk 0:00:04]}  Kh7 {[%clk 0:00:05]} 75. f7 {[%clk 0:00:04]}  Re2+ {[%clk 0:00:05]} 76. Kd7 {[%clk 0:00:04]}  Rd2+ {[%clk 0:00:05]} 77. Ke8 {[%clk 0:00:05]}  Re2+ {[%clk 0:00:05]} 78. Kf8 {[%clk 0:00:05]}  Re3 {[%clk 0:00:05]} 79. Rh1+ {[%clk 0:00:05]}  Kg6 {[%clk 0:00:05]} 80. Kg8 {[%clk 0:00:06]}  Re7 {[%clk 0:00:01]} 81. f8=Q {[%clk 0:00:06]} 1-0


[Site "https://www.chess.com"]

[Event "Titled Tuesday Blitz April 11 Early 2023"]
[White "Hua, Lefong"]
[Black "Kopczynski, Michal"]
[WhiteFideId "2602253"]
[BlackFideId "1124200"]
[WhiteElo "2614"]
[BlackElo "2212"]
[Result "1-0"]
[Round "11"]
[TimeControl "180+2"]
[Date "2023.04.11"]
[WhiteClock "0:01:13"]
[BlackClock "0:00:47"]

1. d4 {[%clk 0:03:00]}  Nf6 {[%clk 0:03:00]} 2. c4 {[%clk 0:03:00]}  g6 {[%clk 0:03:00]} 3. Nc3 {[%clk 0:03:01]}  Bg7 {[%clk 0:03:01]} 4. e4 {[%clk 0:03:01]}  d6 {[%clk 0:03:01]} 5. f4 {[%clk 0:03:02]}  O-O {[%clk 0:03:02]} 6. Nf3 {[%clk 0:03:02]}  c5 {[%clk 0:03:02]} 7. d5 {[%clk 0:03:03]}  Na6 {[%clk 0:03:02]} 8. Be2 {[%clk 0:03:00]}  Nc7 {[%clk 0:03:03]} 9. a4 {[%clk 0:02:58]}  a6 {[%clk 0:03:03]} 10. O-O {[%clk 0:02:58]}  Rb8 {[%clk 0:03:03]} 11. e5 {[%clk 0:02:56]}  Nfe8 {[%clk 0:03:03]} 12. a5 {[%clk 0:02:49]}  b5 {[%clk 0:03:03]} 13. axb6 {[%clk 0:02:49]}  Rxb6 {[%clk 0:03:03]} 14. Ra2 {[%clk 0:02:44]}  Rb4 {[%clk 0:02:59]} 15. Bd2 {[%clk 0:02:35]}  Bg4 {[%clk 0:02:55]} 16. Ne4 {[%clk 0:02:29]}  Rb6 {[%clk 0:02:44]} 17. Bc3 {[%clk 0:02:27]}  h6 {[%clk 0:02:34]} 18. h3 {[%clk 0:02:23]}  Bf5 {[%clk 0:02:34]} 19. Ng3 {[%clk 0:02:17]}  Bc8 {[%clk 0:02:33]} 20. Bd3 {[%clk 0:02:14]}  f5 {[%clk 0:02:29]} 21. exf6 {[%clk 0:02:07]}  Bxf6 {[%clk 0:02:23]} 22. Bxg6 {[%clk 0:02:03]}  Bxc3 {[%clk 0:02:22]} 23. bxc3 {[%clk 0:02:04]}  Rxf4 {[%clk 0:02:21]} 24. Qd2 {[%clk 0:01:58]}  e5 {[%clk 0:02:21]} 25. Nh5 {[%clk 0:01:50]}  Rf8 {[%clk 0:01:55]} 26. Qxh6 {[%clk 0:01:46]}  Qe7 {[%clk 0:01:55]} 27. Raf2 {[%clk 0:01:30]}  a5 {[%clk 0:00:52]} 28. Ng5 {[%clk 0:01:27]}  Rxf2 {[%clk 0:00:50]} 29. Rxf2 {[%clk 0:01:19]}  a4 {[%clk 0:00:48]} 30. Rf8+ {[%clk 0:01:12]}  Qxf8 {[%clk 0:00:47]} 31. Qh7# {[%clk 0:01:13]} 1-0


[Site "https://www.chess.com"]

[Event "Titled Tuesday Blitz April 11 Early 2023"]
[White "Mazurkiewicz, Michal"]
[Black "Ambartsumova, Karina"]
[WhiteFideId "1124943"]
[BlackFideId "4166299"]
[WhiteElo "2054"]
[BlackElo "2240"]
[Result "0-1"]
[Round "11"]
[TimeControl "180+2"]
[Date "2023.04.11"]
[WhiteClock "0:00:05"]
[BlackClock "0:00:12"]

1. e4 {[%clk 0:03:00]}  c5 {[%clk 0:02:58]} 2. Nf3 {[%clk 0:03:00]}  Nc6 {[%clk 0:02:57]} 3. g3 {[%clk 0:03:00]}  e6 {[%clk 0:02:56]} 4. d3 {[%clk 0:03:00]}  Nf6 {[%clk 0:02:51]} 5. Bg2 {[%clk 0:03:00]}  g6 {[%clk 0:02:36]} 6. O-O {[%clk 0:02:59]}  Bg7 {[%clk 0:02:36]} 7. Re1 {[%clk 0:02:59]}  d6 {[%clk 0:02:35]} 8. c3 {[%clk 0:02:59]}  e5 {[%clk 0:02:34]} 9. d4 {[%clk 0:02:58]}  O-O {[%clk 0:02:31]} 10. d5 {[%clk 0:02:28]}  Ne7 {[%clk 0:02:29]} 11. c4 {[%clk 0:02:29]}  h6 {[%clk 0:02:27]} 12. Nc3 {[%clk 0:02:29]}  Nh7 {[%clk 0:02:26]} 13. a3 {[%clk 0:02:28]}  f5 {[%clk 0:02:24]} 14. b4 {[%clk 0:02:26]}  b6 {[%clk 0:02:18]} 15. b5 {[%clk 0:02:13]}  fxe4 {[%clk 0:02:14]} 16. Nxe4 {[%clk 0:02:12]}  Bg4 {[%clk 0:01:46]} 17. h3 {[%clk 0:02:06]}  Bxf3 {[%clk 0:01:41]} 18. Bxf3 {[%clk 0:02:07]}  Nf5 {[%clk 0:01:41]} 19. Bg4 {[%clk 0:02:04]}  Nd4 {[%clk 0:01:31]} 20. Be3 {[%clk 0:01:57]}  Kh8 {[%clk 0:01:18]} 21. Bxd4 {[%clk 0:01:44]}  cxd4 {[%clk 0:01:18]} 22. Qd3 {[%clk 0:01:41]}  h5 {[%clk 0:01:09]} 23. Bf3 {[%clk 0:01:33]}  Rf5 {[%clk 0:01:02]} 24. h4 {[%clk 0:01:28]}  Qf8 {[%clk 0:00:54]} 25. Bg2 {[%clk 0:01:27]}  Bh6 {[%clk 0:00:47]} 26. Bh3 {[%clk 0:01:22]}  Rf3 {[%clk 0:00:44]} 27. Qd1 {[%clk 0:01:10]}  Rd8 {[%clk 0:00:38]} 28. Bg2 {[%clk 0:01:05]}  Rf7 {[%clk 0:00:37]} 29. Qd3 {[%clk 0:00:57]}  Qg7 {[%clk 0:00:32]} 30. a4 {[%clk 0:00:56]}  Nf6 {[%clk 0:00:30]} 31. a5 {[%clk 0:00:53]}  Ng4 {[%clk 0:00:21]} 32. Bh3 {[%clk 0:00:42]}  Rdf8 {[%clk 0:00:12]} 33. Bxg4 {[%clk 0:00:41]}  hxg4 {[%clk 0:00:12]} 34. axb6 {[%clk 0:00:41]}  axb6 {[%clk 0:00:12]} 35. Ra6 {[%clk 0:00:41]}  Rf3 {[%clk 0:00:12]} 36. Qd1 {[%clk 0:00:29]}  Qc7 {[%clk 0:00:13]} 37. Rf1 {[%clk 0:00:16]}  Qxc4 {[%clk 0:00:11]} 38. Rxb6 {[%clk 0:00:15]}  Qxd5 {[%clk 0:00:12]} 39. Nxd6 {[%clk 0:00:13]}  Be3 {[%clk 0:00:12]} 40. Qb1 {[%clk 0:00:06]}  Rxg3+ {[%clk 0:00:12]} 41. Kh2 {[%clk 0:00:05]}  Qg2# {[%clk 0:00:12]} 0-1


[Site "https://www.chess.com"]

[Event "Titled Tuesday Blitz April 11 Early 2023"]
[White "Dominguez Pons, Eric"]
[Black "Salinas Herrera, Pablo"]
[WhiteFideId "2262916"]
[BlackFideId "3407128"]
[WhiteElo "2302"]
[BlackElo "2546"]
[Result "0-1"]
[Round "11"]
[TimeControl "180+2"]
[Date "2023.04.11"]
[WhiteClock "0:00:40"]
[BlackClock "0:01:21"]

1. d4 {[%clk 0:03:00]}  d5 {[%clk 0:02:59]} 2. Nf3 {[%clk 0:02:59]}  Nf6 {[%clk 0:02:57]} 3. e3 {[%clk 0:02:59]}  Bg4 {[%clk 0:02:57]} 4. h3 {[%clk 0:02:59]}  Bxf3 {[%clk 0:02:57]} 5. Qxf3 {[%clk 0:03:00]}  c6 {[%clk 0:02:57]} 6. c4 {[%clk 0:02:59]}  e6 {[%clk 0:02:57]} 7. Nc3 {[%clk 0:02:59]}  Nbd7 {[%clk 0:02:58]} 8. Bd3 {[%clk 0:02:58]}  Bb4 {[%clk 0:02:58]} 9. Bd2 {[%clk 0:02:58]}  O-O {[%clk 0:02:58]} 10. O-O {[%clk 0:02:54]}  Qe7 {[%clk 0:02:58]} 11. a3 {[%clk 0:02:54]}  Bxc3 {[%clk 0:02:57]} 12. Bxc3 {[%clk 0:02:54]}  e5 {[%clk 0:02:58]} 13. dxe5 {[%clk 0:02:52]}  Nxe5 {[%clk 0:02:58]} 14. Bxe5 {[%clk 0:02:40]}  Qxe5 {[%clk 0:02:56]} 15. Rab1 {[%clk 0:02:39]}  Rad8 {[%clk 0:02:55]} 16. Qe2 {[%clk 0:02:38]}  d4 {[%clk 0:02:53]} 17. e4 {[%clk 0:02:33]}  Rfe8 {[%clk 0:02:19]} 18. f4 {[%clk 0:02:31]}  Qe7 {[%clk 0:02:20]} 19. e5 {[%clk 0:02:29]}  Nd7 {[%clk 0:02:20]} 20. Rbe1 {[%clk 0:02:25]}  Nf8 {[%clk 0:02:20]} 21. g3 {[%clk 0:02:19]}  c5 {[%clk 0:02:17]} 22. h4 {[%clk 0:02:19]}  a6 {[%clk 0:02:16]} 23. Kh2 {[%clk 0:02:14]}  Qc7 {[%clk 0:02:16]} 24. f5 {[%clk 0:02:06]}  Re7 {[%clk 0:02:04]} 25. f6 {[%clk 0:01:53]}  gxf6 {[%clk 0:02:03]} 26. Qg4+ {[%clk 0:01:53]}  Ng6 {[%clk 0:01:57]} 27. h5 {[%clk 0:01:52]}  Rxe5 {[%clk 0:01:53]} 28. hxg6 {[%clk 0:01:49]}  hxg6 {[%clk 0:01:54]} 29. Rxe5 {[%clk 0:01:23]}  fxe5 {[%clk 0:01:55]} 30. Bxg6 {[%clk 0:01:16]}  fxg6 {[%clk 0:01:53]} 31. Qxg6+ {[%clk 0:01:00]}  Qg7 {[%clk 0:01:50]} 32. Qe6+ {[%clk 0:01:01]}  Kh8 {[%clk 0:01:50]} 33. Rf6 {[%clk 0:00:55]}  Rd7 {[%clk 0:01:21]} 34. Rh6+ {[%clk 0:00:39]}  Qxh6+ {[%clk 0:01:21]} 35. Qxh6+ {[%clk 0:00:40]}  Rh7 {[%clk 0:01:21]} 0-1


[Site "https://www.chess.com"]

[Event "Titled Tuesday Blitz April 11 Early 2023"]
[White "Mikhailovsky, Vladimir"]
[Black "Nguyen, Hong Anh"]
[WhiteFideId "34105414"]
[BlackFideId "12406732"]
[WhiteElo "2275"]
[BlackElo "2054"]
[Result "0-1"]
[Round "11"]
[TimeControl "180+2"]
[Date "2023.04.11"]
[WhiteClock "0:00:01"]
[BlackClock "0:00:46"]

1. g4 {[%clk 0:02:59]}  d5 {[%clk 0:02:58]} 2. Bg2 {[%clk 0:02:59]}  Bxg4 {[%clk 0:02:57]} 3. c4 {[%clk 0:03:00]}  e6 {[%clk 0:02:42]} 4. Qb3 {[%clk 0:02:59]}  Nd7 {[%clk 0:02:36]} 5. Qxb7 {[%clk 0:02:58]}  Ngf6 {[%clk 0:02:31]} 6. cxd5 {[%clk 0:02:57]}  exd5 {[%clk 0:02:31]} 7. Nc3 {[%clk 0:02:57]}  Be6 {[%clk 0:02:28]} 8. Nf3 {[%clk 0:02:55]}  Bd6 {[%clk 0:02:26]} 9. Nd4 {[%clk 0:02:55]}  O-O {[%clk 0:02:23]} 10. d3 {[%clk 0:02:54]}  Re8 {[%clk 0:02:11]} 11. Bg5 {[%clk 0:02:37]}  Rb8 {[%clk 0:02:05]} 12. Qxa7 {[%clk 0:02:27]}  Rxb2 {[%clk 0:02:04]} 13. Nb3 {[%clk 0:02:18]}  Bb4 {[%clk 0:01:56]} 14. Bd2 {[%clk 0:02:06]}  Bg4 {[%clk 0:01:41]} 15. f3 {[%clk 0:02:00]}  Bf5 {[%clk 0:01:38]} 16. Nd1 {[%clk 0:01:10]}  Rc2 {[%clk 0:01:16]} 17. Ne3 {[%clk 0:00:47]}  Rxd2 {[%clk 0:01:06]} 18. Nxd2 {[%clk 0:00:48]}  Bc5 {[%clk 0:01:06]} 19. Qa5 {[%clk 0:00:19]}  Bxe3 {[%clk 0:01:05]} 20. Nf1 {[%clk 0:00:20]}  Bb6 {[%clk 0:01:03]} 21. Qd2 {[%clk 0:00:18]}  Qa8 {[%clk 0:00:59]} 22. Qc2 {[%clk 0:00:03]}  Nc5 {[%clk 0:00:57]} 23. Kd1 {[%clk 0:00:02]}  Bd7 {[%clk 0:00:54]} 24. a4 {[%clk 0:00:02]}  Nxa4 {[%clk 0:00:49]} 25. Nd2 {[%clk 0:00:01]}  Qa5 {[%clk 0:00:46]} 0-1


[Site "https://www.chess.com"]